[Event "FIDE WCCC Open-12 2024"]
[Site "Montesilvano"]
[Date "2024.11.18"]
[Round "2.14"]
[White "Ivancic, Ivan"]
[Black "Matejka, Simon"]
[Result "0-1"]
[ECO "B23"]
[WhiteElo "2091"]
[BlackElo "1924"]
[PlyCount "98"]
[EventDate "2024.11.18"]
[EventType "swiss"]
[EventCountry "ITA"]
[TimeControl "5400+30"]

1. e4 {[%emt 0:00:03]} c5 {[%emt 0:00:27]} 2. Nc3 {[%emt 0:03:30]} d6 {[%emt 0:01:23]} 3. d4 {[%emt 0:02:07]} cxd4 {[%emt 0:01:51]} 4. Qxd4 {[%emt 0:00:23]} Nc6 {[%emt 0:00:31]} 5. Qd2 {[%emt 0:00:21]} g6 {[%emt 0:01:27]} 6. b3 {[%emt 0:00:27]} Bg7 {[%emt 0:01:36]} 7. Bb2 {[%emt 0:03:59]} Nf6 {[%emt 0:02:27]} 8. O-O-O {[%emt 0:03:23]} O-O {[%emt 0:02:51]} 9. f4 {[%emt 0:11:47]} Nd7 {[%emt 0:02:44]} 10. g4 {[%emt 0:19:37]} Nc5 {[%emt 0:06:24]} 11. g5 {[%emt 0:10:56]} a5 {[%emt 0:05:19]} 12. a4 {[%emt 0:05:02]} Be6 {[%emt 0:04:14]} 13. Kb1 {[%emt 0:05:10]} Nb4 {[%emt 0:08:02]} 14. Bh3 {[%emt 0:07:11]} f5 {[%emt 0:04:31]} 15. gxf6 {[%emt 0:01:13]} Bxf6 {[%emt 0:00:34]} 16. Bxe6+ {[%emt 0:05:05]} Nxe6 {[%emt 0:00:08]} 17. Nge2 {[%emt 0:03:48]} Rc8 {[%emt 0:03:36]} 18. Rhg1 {[%emt 0:01:47]} Nc5 {[%emt 0:03:07]} 19. Rc1 {[%emt 0:04:04]} Kh8 {[%emt 0:04:25]} 20. h4 {[%emt 0:01:41]} Qd7 {[%emt 0:06:19]} 21. h5 {[%emt 0:01:01]} gxh5 {[%emt 0:00:29]} 22. f5 {[%emt 0:01:00]} e6 {[%emt 0:03:43]} 23. Qh6 {[%emt 0:02:06]} Bg7 {[%emt 0:05:32]} 24. Qxh5 {[%emt 0:03:50]} Qf7 {[%emt 0:01:46]} 25. Rg6 {[%emt 0:02:17]} exf5 {[%emt 0:02:18]} 26. Rh1 {[%emt 0:01:10]} Be5 {[%emt 0:01:19]} 27. Nf4 {[%emt 0:00:30]} Bxf4 {[%emt 0:02:36]} 28. Nd5+ {[%emt 0:00:14]} Be5 {[%emt 0:00:38]} 29. Nf6 {[%emt 0:00:34]} Rc7 {[%emt 0:00:22]} 30. Rhg1 {[%emt 0:00:38]} Bxb2 {[%emt 0:04:32]} 31. Nxh7 {[%emt 0:00:32]} Qxh7 {[%emt 0:01:17]} 32. Rh6 {[%emt 0:00:15]} Be5 {[%emt 0:01:31]} 33. Rh1 {[%emt 0:00:42]} Qxh6 {[%emt 0:07:55]} 34. Qxh6+ {[%emt 0:00:00]} Kg8 {[%emt 0:00:04]} 35. exf5 {[%emt 0:00:57]} Rg7 {[%emt 0:01:25]} 36. Qh8+ {[%emt 0:00:37]} Kf7 {[%emt 0:00:02]} 37. Qh5+ {[%emt 0:00:07]} Ke7 {[%emt 0:00:45]} 38. Re1 {[%emt 0:00:47]} Kd7 {[%emt 0:00:32]} 39. Qh6 {[%emt 0:00:37]} Rgf7 {[%emt 0:00:36]} 40. Rf1 {[%emt 0:00:27]} Kc7 {[%emt 0:00:21]} 41. c3 {[%emt 0:00:29]} Nd5 {[%emt 0:00:41]} 42. Kc2 {[%emt 0:00:33]} Bf4 {[%emt 0:01:23]} 43. Rxf4 {[%emt 0:00:31]} Nxf4 {[%emt 0:00:04]} 44. Qxf4 {[%emt 0:00:05]} Rxf5 {[%emt 0:00:20]} 45. Qc4 {[%emt 0:00:53]} Rf2+ {[%emt 0:01:12]} 46. Kd1 {[%emt 0:00:29]} R8f4 {[%emt 0:01:45]} 47. Qg8 {[%emt 0:00:30]} Rf7 {[%emt 0:04:10]} 48. b4 {[%emt 0:00:30]} axb4 {[%emt 0:00:28]} 49. cxb4 {[%emt 0:00:25]} Nxa4 {[%emt 0:00:28]} 0-1

[Event "FIDE WCCC Open-12 2024"]
[Site "Montesilvano"]
[Date "2024.11.18"]
[Round "2.15"]
[White "Sobirov, Afruzbek"]
[Black "Obidov, Biloliddin"]
[Result "1-0"]
[ECO "B90"]
[WhiteElo "1928"]
[BlackElo "2088"]
[PlyCount "145"]
[EventDate "2024.11.18"]
[EventType "swiss"]
[EventCountry "ITA"]
[TimeControl "5400+30"]

1. e4 {[%emt 0:00:02]} c5 {[%emt 0:00:04]} 2. Nf3 {[%emt 0:00:04]} d6 {[%emt 0:00:05]} 3. d4 {[%emt 0:00:04]} cxd4 {[%emt 0:00:05]} 4. Nxd4 {[%emt 0:00:04]} Nf6 {[%emt 0:00:05]} 5. Nc3 {[%emt 0:00:06]} a6 {[%emt 0:00:07]} 6. Be3 {[%emt 0:00:04]} e5 {[%emt 0:00:04]} 7. Nb3 {[%emt 0:00:04]} Be7 {[%emt 0:00:05]} 8. f3 {[%emt 0:00:05]} Be6 {[%emt 0:00:03]} 9. Qd2 {[%emt 0:00:07]} h5 {[%emt 0:00:06]} 10. Nd5 {[%emt 0:00:52]} Nxd5 {[%emt 0:02:47]} 11. exd5 {[%emt 0:00:49]} Bf5 {[%emt 0:00:03]} 12. Bd3 {[%emt 0:04:22]} Bxd3 {[%emt 0:00:12]} 13. Qxd3 {[%emt 0:00:05]} Nd7 {[%emt 0:01:09]} 14. O-O-O {[%emt 0:00:12]} Bg5 {[%emt 0:01:06]} 15. Kb1 {[%emt 0:01:37]} Bxe3 {[%emt 0:01:51]} 16. Qxe3 {[%emt 0:00:12]} Rc8 {[%emt 0:10:46]} 17. h4 {[%emt 0:04:30]} a5 {[%emt 0:18:17]} 18. Nd4 {[%emt 0:03:46]} Qb6 {[%emt 0:06:14]} 19. Rhe1 {[%emt 0:03:03]} g6 {[%emt 0:02:58]} 20. Qg5 {[%emt 0:06:09]} Rc4 {[%emt 0:24:43]} 21. Re4 {[%emt 0:08:25]} Rb4 {[%emt 0:11:17]} 22. b3 {[%emt 0:00:47]} Qd8 {[%emt 0:03:13]} 23. c4 {[%emt 0:06:30]} Rb6 {[%emt 0:05:39]} 24. Nb5 {[%emt 0:02:07]} O-O {[%emt 0:01:24]} 25. g4 {[%emt 0:04:08]} Qxg5 {[%emt 0:03:47]} 26. hxg5 {[%emt 0:00:06]} f5 {[%emt 0:01:01]} 27. gxf6 {[%emt 0:00:20]} Nxf6 {[%emt 0:00:31]} 28. Re3 {[%emt 0:03:11]} h4 {[%emt 0:01:40]} 29. Nc7 {[%emt 0:01:01]} Nh7 {[%emt 0:00:52]} 30. Ne6 {[%emt 0:01:23]} Rf7 {[%emt 0:01:00]} 31. g5 {[%emt 0:00:54]} Nf8 {[%emt 0:01:09]} 32. Nxf8 {[%emt 0:03:28]} Kxf8 {[%emt 0:00:30]} 33. Rh1 {[%emt 0:01:54]} Rh7 {[%emt 0:01:40]} 34. f4 {[%emt 0:01:01]} exf4 {[%emt 0:01:07]} 35. Rf3 {[%emt 0:00:04]} Ke7 {[%emt 0:01:19]} 36. Rxf4 {[%emt 0:00:10]} h3 {[%emt 0:00:37]} 37. Re4+ {[%emt 0:00:42]} Kd7 {[%emt 0:00:20]} 38. Re3 {[%emt 0:01:17]} h2 {[%emt 0:00:40]} 39. Re2 {[%emt 0:00:04]} a4 {[%emt 0:00:32]} 40. Kc2 {[%emt 0:00:04]} axb3+ {[%emt 0:00:07]} 41. axb3 {[%emt 0:00:04]} Ra6 {[%emt 0:01:07]} 42. Kb2 {[%emt 0:00:08]} b5 {[%emt 0:00:36]} 43. Rexh2 {[%emt 0:00:32]} Re7 {[%emt 0:00:15]} 44. Rh7 {[%emt 0:00:37]} bxc4 {[%emt 0:00:35]} 45. bxc4 {[%emt 0:00:20]} Ra4 {[%emt 0:00:39]} 46. Kb3 {[%emt 0:00:14]} Ra6 {[%emt 0:00:13]} 47. R1h6 {[%emt 0:00:24]} Rb6+ {[%emt 0:00:45]} 48. Kc3 {[%emt 0:00:12]} Rb1 {[%emt 0:00:29]} 49. Rxe7+ {[%emt 0:00:06]} Kxe7 {[%emt 0:00:00]} 50. Rxg6 {[%emt 0:00:09]} Rc1+ {[%emt 0:00:06]} 51. Kd3 {[%emt 0:00:05]} Rd1+ {[%emt 0:00:18]} 52. Kc2 {[%emt 0:00:05]} Rg1 {[%emt 0:00:09]} 53. Rg7+ {[%emt 0:00:31]} Ke8 {[%emt 0:00:44]} 54. Kc3 {[%emt 0:03:29]} Rg2 {[%emt 0:00:34]} 55. Kb4 {[%emt 0:00:40]} Rb2+ {[%emt 0:00:26]} 56. Ka5 {[%emt 0:00:18]} Rb1 {[%emt 0:01:03]} 57. g6 {[%emt 0:00:29]} Rg1 {[%emt 0:01:09]} 58. Rg8+ {[%emt 0:01:23]} Kd7 {[%emt 0:00:25]} 59. g7 {[%emt 0:00:25]} Kc7 {[%emt 0:00:24]} 60. Kb4 {[%emt 0:00:37]} Kb7 {[%emt 0:00:45]} 61. c5 {[%emt 0:00:10]} Rg4+ {[%emt 0:00:30]} 62. Kb5 {[%emt 0:00:06]} dxc5 {[%emt 0:00:08]} 63. Kxc5 {[%emt 0:00:13]} Rg6 {[%emt 0:00:38]} 64. d6 {[%emt 0:00:10]} Rg5+ {[%emt 0:00:33]} 65. Kd4 {[%emt 0:00:20]} Kc6 {[%emt 0:00:42]} 66. Rc8+ {[%emt 0:00:08]} Kxd6 {[%emt 0:00:25]} 67. g8=Q {[%emt 0:00:08]} Rxg8 {[%emt 0:00:34]} 68. Rxg8 {[%emt 0:00:06]} Ke6 {[%emt 0:00:11]} 69. Ke4 {[%emt 0:00:05]} Kf7 {[%emt 0:00:41]} 70. Rg5 {[%emt 0:00:06]} Kf6 {[%emt 0:00:08]} 71. Re5 {[%emt 0:00:04]} Kf7 {[%emt 0:00:47]} 72. Kf5 {[%emt 0:00:04]} Kg7 {[%emt 0:00:07]} 73. Re7+ {[%emt 0:00:05]} 1-0

[Event "FIDE WCCC Open-12 2024"]
[Site "Montesilvano"]
[Date "2024.11.18"]
[Round "2.16"]
[White "Yin, Milo"]
[Black "Abdsattar, Alisher"]
[Result "0-1"]
[ECO "A48"]
[WhiteElo "1925"]
[BlackElo "2082"]
[PlyCount "86"]
[EventDate "2024.11.18"]
[EventType "swiss"]
[EventCountry "ITA"]
[TimeControl "5400+30"]

1. Nf3 {[%emt 0:00:31]} Nf6 {[%emt 0:00:07]} 2. e3 {[%emt 0:00:07]} g6 {[%emt 0:00:18]} 3. b4 {[%emt 0:00:37]} Bg7 {[%emt 0:00:24]} 4. Bb2 {[%emt 0:00:08]} O-O {[%emt 0:00:10]} 5. d4 {[%emt 0:00:56]} d6 {[%emt 0:04:00]} 6. Be2 {[%emt 0:00:38]} c5 {[%emt 0:02:09]} 7. bxc5 {[%emt 0:01:38]} dxc5 {[%emt 0:00:45]} 8. O-O {[%emt 0:02:35]} cxd4 {[%emt 0:02:29]} 9. exd4 {[%emt 0:01:15]} Nc6 {[%emt 0:00:14]} 10. c4 {[%emt 0:07:41]} Nh5 {[%emt 0:06:25]} 11. Qd2 {[%emt 0:11:09]} Qc7 {[%emt 0:03:23]} 12. Nc3 {[%emt 0:08:06]} Bg4 {[%emt 0:02:32]} 13. Nd5 {[%emt 0:20:46]} Qd7 {[%emt 0:11:07]} 14. Rad1 {[%emt 0:01:51]} e6 {[%emt 0:07:54]} 15. Ne3 {[%emt 0:01:37]} Bxf3 {[%emt 0:00:45]} 16. Bxf3 {[%emt 0:00:33]} Nf6 {[%emt 0:00:12]} 17. d5 {[%emt 0:06:07]} exd5 {[%emt 0:05:13]} 18. Nxd5 {[%emt 0:05:34]} Nxd5 {[%emt 0:00:40]} 19. Bxg7 {[%emt 0:04:31]} Kxg7 {[%emt 0:00:05]} 20. Qb2+ {[%emt 0:00:36]} Kg8 {[%emt 0:02:41]} 21. Rxd5 {[%emt 0:01:46]} Qc7 {[%emt 0:02:04]} 22. Rfd1 {[%emt 0:02:04]} Rad8 {[%emt 0:01:44]} 23. g3 {[%emt 0:01:47]} b6 {[%emt 0:06:02]} 24. Qf6 {[%emt 0:06:52]} Ne7 {[%emt 0:06:44]} 25. Rxd8 {[%emt 0:01:43]} Rxd8 {[%emt 0:00:04]} 26. Re1 {[%emt 0:01:57]} Nc8 {[%emt 0:07:37]} 27. Bd5 {[%emt 0:01:45]} Rf8 {[%emt 0:01:23]} 28. h4 {[%emt 0:03:27]} Qd6 {[%emt 0:05:18]} 29. Qg5 {[%emt 0:03:19]} Qd8 {[%emt 0:05:58]} 30. Qf4 {[%emt 0:03:08]} h5 {[%emt 0:01:22]} 31. Kg2 {[%emt 0:00:31]} Kg7 {[%emt 0:00:18]} 32. Re3 {[%emt 0:00:33]} Nd6 {[%emt 0:02:35]} 33. g4 {[%emt 0:00:27]} hxg4 {[%emt 0:00:53]} 34. Qxg4 {[%emt 0:00:13]} Rh8 {[%emt 0:00:31]} 35. Rh3 {[%emt 0:00:37]} Rh5 {[%emt 0:00:24]} 36. Qd4+ {[%emt 0:00:10]} Qf6 {[%emt 0:00:23]} 37. Qxf6+ {[%emt 0:00:40]} Kxf6 {[%emt 0:00:03]} 38. Kf3 {[%emt 0:00:39]} b5 {[%emt 0:01:35]} 39. Kg4 {[%emt 0:00:52]} bxc4 {[%emt 0:00:12]} 40. a4 {[%emt 0:00:29]} Rxd5 {[%emt 0:00:06]} 41. f4 {[%emt 0:00:34]} Rd3 {[%emt 0:00:09]} 42. Rh1 {[%emt 0:00:26]} Nf5 {[%emt 0:00:03]} 43. Rg1 {[%emt 0:00:34]} Nh6# {[%emt 0:00:07]} 0-1

[Event "FIDE WCCC Open-12 2024"]
[Site "Montesilvano"]
[Date "2024.11.18"]
[Round "2.17"]
[White "Petroff, Vlad"]
[Black "Yerzhanuly Yernur"]
[Result "1-0"]
[ECO "E14"]
[WhiteElo "2079"]
[BlackElo "1917"]
[PlyCount "113"]
[EventDate "2024.11.18"]
[EventType "swiss"]
[EventCountry "ITA"]
[TimeControl "5400+30"]

1. d4 {[%emt 0:00:11]} e6 {[%emt 0:00:09]} 2. c4 {[%emt 0:00:45]} Nf6 {[%emt 0:00:07]} 3. Nf3 {[%emt 0:01:09]} Bb4+ {[%emt 0:00:08]} 4. Nbd2 {[%emt 0:00:58]} b6 {[%emt 0:01:23]} 5. a3 {[%emt 0:00:49]} Bxd2+ {[%emt 0:00:10]} 6. Qxd2 {[%emt 0:00:39]} Bb7 {[%emt 0:00:42]} 7. e3 {[%emt 0:02:10]} a5 {[%emt 0:00:41]} 8. Be2 {[%emt 0:02:10]} O-O {[%emt 0:02:13]} 9. O-O {[%emt 0:02:28]} d6 {[%emt 0:00:33]} 10. b3 {[%emt 0:00:40]} Nbd7 {[%emt 0:00:20]} 11. Bb2 {[%emt 0:01:36]} Qe7 {[%emt 0:03:23]} 12. b4 {[%emt 0:07:07]} Ne4 {[%emt 0:07:54]} 13. Qc2 {[%emt 0:05:09]} axb4 {[%emt 0:02:40]} 14. axb4 {[%emt 0:00:46]} c5 {[%emt 0:01:00]} 15. bxc5 {[%emt 0:11:59]} bxc5 {[%emt 0:00:09]} 16. Rfb1 {[%emt 0:05:29]} f5 {[%emt 0:10:35]} 17. Ba3 {[%emt 0:12:38]} Rfb8 {[%emt 0:07:38]} 18. Ra2 {[%emt 0:08:55]} Bc6 {[%emt 0:11:37]} 19. Rba1 {[%emt 0:05:47]} Ndf6 {[%emt 0:18:01]} 20. dxc5 {[%emt 0:04:39]} Nxc5 {[%emt 0:01:28]} 21. Nd4 {[%emt 0:02:55]} Ba4 {[%emt 0:07:03]} 22. Qc1 {[%emt 0:03:31]} Nb3 {[%emt 0:03:37]} 23. Nxb3 {[%emt 0:02:33]} Bxb3 {[%emt 0:00:03]} 24. Bxd6 {[%emt 0:01:41]} Qb7 {[%emt 0:01:31]} 25. Rxa8 {[%emt 0:01:14]} Rxa8 {[%emt 0:00:01]} 26. Rxa8+ {[%emt 0:04:07]} Qxa8 {[%emt 0:00:01]} 27. Qb1 {[%emt 0:04:28]} Qa4 {[%emt 0:00:23]} 28. c5 {[%emt 0:01:30]} Ne4 {[%emt 0:00:10]} 29. Qc1 {[%emt 0:03:28]} Qc6 {[%emt 0:01:29]} 30. Qb2 {[%emt 0:02:44]} Qa4 {[%emt 0:02:31]} 31. Bf3 {[%emt 0:00:53]} Kf7 {[%emt 0:01:18]} 32. h3 {[%emt 0:00:30]} Qc4 {[%emt 0:01:46]} 33. Bh5+ {[%emt 0:00:34]} Kg8 {[%emt 0:01:59]} 34. Qa3 {[%emt 0:00:35]} Qa4 {[%emt 0:01:14]} 35. Qxa4 {[%emt 0:01:13]} Bxa4 {[%emt 0:00:03]} 36. Be2 {[%emt 0:00:00]} Nxd6 {[%emt 0:04:17]} 37. cxd6 {[%emt 0:00:00]} e5 {[%emt 0:00:02]} 38. Bc4+ {[%emt 0:00:29]} Kf8 {[%emt 0:00:05]} 39. Be6 {[%emt 0:00:21]} g6 {[%emt 0:00:01]} 40. g4 {[%emt 0:00:35]} fxg4 {[%emt 0:00:25]} 41. hxg4 {[%emt 0:00:34]} g5 {[%emt 0:00:21]} 42. Kg2 {[%emt 0:00:24]} Ke8 {[%emt 0:02:37]} 43. Kg3 {[%emt 0:00:22]} Bd7 {[%emt 0:01:34]} 44. Bf5 {[%emt 0:00:28]} h6 {[%emt 0:02:03]} 45. Kf3 {[%emt 0:00:50]} Bc6+ {[%emt 0:00:29]} 46. Kg3 {[%emt 0:00:30]} Kd8 {[%emt 0:00:14]} 47. f4 {[%emt 0:00:32]} exf4+ {[%emt 0:01:00]} 48. exf4 {[%emt 0:00:16]} Ke8 {[%emt 0:02:34]} 49. Be6 {[%emt 0:00:21]} Kf8 {[%emt 0:01:28]} 50. f5 {[%emt 0:00:15]} Ke8 {[%emt 0:00:43]} 51. Kf2 {[%emt 0:01:00]} Ba4 {[%emt 0:00:53]} 52. f6 {[%emt 0:00:32]} Kf8 {[%emt 0:00:07]} 53. Ke3 {[%emt 0:00:36]} Bc6 {[%emt 0:00:11]} 54. Kd4 {[%emt 0:00:22]} Ba4 {[%emt 0:01:12]} 55. d7 {[%emt 0:00:21]} Bxd7 {[%emt 0:00:05]} 56. Bxd7 {[%emt 0:00:02]} Kf7 {[%emt 0:00:00]} 57. Ke4 {[%emt 0:02:10]} 1-0

[Event "FIDE WCCC Open-12 2024"]
[Site "Montesilvano"]
[Date "2024.11.18"]
[Round "2.18"]
[White "Mamikonyan, Artem T"]
[Black "Nicot, Valentin"]
[Result "1-0"]
[ECO "B06"]
[WhiteElo "1918"]
[BlackElo "2078"]
[PlyCount "95"]
[EventDate "2024.11.18"]
[EventType "swiss"]
[EventCountry "ITA"]
[TimeControl "5400+30"]

1. e4 {[%emt 0:00:02]} g6 {[%emt 0:00:19]} 2. d4 {[%emt 0:00:11]} Bg7 {[%emt 0:00:23]} 3. c3 {[%emt 0:03:11]} c6 {[%emt 0:01:40]} 4. Bd3 {[%emt 0:01:31]} d5 {[%emt 0:00:31]} 5. e5 {[%emt 0:00:50]} Nh6 {[%emt 0:07:33]} 6. Bf4 {[%emt 0:16:33]} f6 {[%emt 0:09:18]} 7. exf6 {[%emt 0:15:04]} exf6 {[%emt 0:00:09]} 8. h4 {[%emt 0:00:15]} O-O {[%emt 0:15:50]} 9. Bxh6 {[%emt 0:01:30]} Bxh6 {[%emt 0:00:09]} 10. h5 {[%emt 0:00:03]} g5 {[%emt 0:01:11]} 11. Qc2 {[%emt 0:01:37]} Qe7+ {[%emt 0:02:05]} 12. Ne2 {[%emt 0:00:20]} Re8 {[%emt 0:06:47]} 13. Nd2 {[%emt 0:04:57]} Bf5 {[%emt 0:07:55]} 14. Nf1 {[%emt 0:00:09]} Bxd3 {[%emt 0:03:46]} 15. Qxd3 {[%emt 0:00:16]} Qe4 {[%emt 0:02:55]} 16. Qxe4 {[%emt 0:00:04]} Rxe4 {[%emt 0:00:06]} 17. Nfg3 {[%emt 0:00:06]} Re6 {[%emt 0:00:25]} 18. Nf5 {[%emt 0:00:34]} Bf8 {[%emt 0:00:19]} 19. Kd2 {[%emt 0:05:43]} Nd7 {[%emt 0:02:16]} 20. Rae1 {[%emt 0:01:16]} Rae8 {[%emt 0:03:33]} 21. Nc1 {[%emt 0:01:12]} Nb6 {[%emt 0:02:24]} 22. b3 {[%emt 0:00:11]} Nc8 {[%emt 0:02:26]} 23. Rxe6 {[%emt 0:10:59]} Rxe6 {[%emt 0:00:02]} 24. Nd3 {[%emt 0:00:07]} Nd6 {[%emt 0:30:28]} 25. Nc5 {[%emt 0:02:05]} Ne4+ {[%emt 0:00:00]} 26. Nxe4 {[%emt 0:00:07]} Rxe4 {[%emt 0:00:00]} 27. f3 {[%emt 0:00:06]} Re6 {[%emt 0:00:00]} 28. Re1 {[%emt 0:00:31]} Kf7 {[%emt 0:00:00]} 29. g4 {[%emt 0:00:05]} Rxe1 {[%emt 0:00:00]} 30. Kxe1 {[%emt 0:00:04]} a5 {[%emt 0:00:00]} 31. Ke2 {[%emt 0:00:19]} Ke6 {[%emt 0:00:00]} 32. a4 {[%emt 0:36:32]} b6 {[%emt 0:00:00]} 33. Kd3 {[%emt 0:00:00]} Bd6 {[%emt 0:00:00]} 34. Ne3 {[%emt 0:00:00]} Bf4 {[%emt 0:00:00]} 35. Nc2 {[%emt 0:00:00]} Bd6 {[%emt 0:00:00]} 36. b4 {[%emt 0:00:00]} Be7 {[%emt 0:00:00]} 37. Kd2 {[%emt 0:00:00]} Bd6 {[%emt 0:00:00]} 38. Kc1 {[%emt 0:00:00]} Bc7 {[%emt 0:00:00]} 39. Kb2 {[%emt 0:00:00]} Bd6 {[%emt 0:00:00]} 40. Kb3 {[%emt 0:00:00]} Be7 {[%emt 0:00:00]} 41. b5 {[%emt 0:00:00]} c5 {[%emt 0:00:00]} 42. c4 {[%emt 0:00:00]} dxc4+ {[%emt 0:00:00]} 43. Kxc4 {[%emt 0:00:00]} cxd4 {[%emt 0:00:00]} 44. Nxd4+ {[%emt 0:00:00]} Kd6 {[%emt 0:00:00]} 45. Nf5+ {[%emt 0:00:00]} Ke6 {[%emt 0:00:00]} 46. Nxe7 {[%emt 0:00:00]} Kxe7 {[%emt 0:00:00]} 47. Kd5 {[%emt 0:00:00]} Kd7 {[%emt 0:00:00]} 48. h6 {[%emt 0:00:00]} 1-0

[Event "FIDE WCCC Open-12 2024"]
[Site "Montesilvano"]
[Date "2024.11.18"]
[Round "2.19"]
[White "Filindash, Nikita"]
[Black "Chen, Jun-Wei"]
[Result "1-0"]
[ECO "E51"]
[WhiteElo "2076"]
[BlackElo "1907"]
[PlyCount "83"]
[EventDate "2024.11.18"]
[EventType "swiss"]
[EventCountry "ITA"]
[TimeControl "5400+30"]

1. d4 {[%emt 0:00:01]} Nf6 {[%emt 0:00:09]} 2. c4 {[%emt 0:00:04]} e6 {[%emt 0:00:13]} 3. Nc3 {[%emt 0:00:03]} Bb4 {[%emt 0:00:14]} 4. e3 {[%emt 0:00:04]} O-O {[%emt 0:00:34]} 5. Bd2 {[%emt 0:00:02]} d5 {[%emt 0:00:10]} 6. Nf3 {[%emt 0:00:08]} b6 {[%emt 0:00:37]} 7. cxd5 {[%emt 0:00:07]} exd5 {[%emt 1:32:03]} 8. Rc1 {[%emt 0:00:07]} Bb7 {[%emt 0:00:00]} 9. Bd3 {[%emt 0:00:09]} Bd6 {[%emt 0:00:00]} 10. Nb5 {[%emt 0:00:52]} Ne4 {[%emt 0:00:00]} 11. Nxd6 {[%emt 0:00:30]} Qxd6 {[%emt 0:00:00]} 12. O-O {[%emt 0:00:30]} Nxd2 {[%emt 0:00:00]} 13. Qxd2 {[%emt 0:00:07]} c6 {[%emt 0:00:00]} 14. Qc2 {[%emt 0:09:13]} g6 {[%emt 0:00:00]} 15. Ne5 {[%emt 0:06:35]} Nd7 {[%emt 0:00:00]} 16. f4 {[%emt 0:05:51]} Rac8 {[%emt 0:00:00]} 17. Nxd7 {[%emt 0:12:25]} Qxd7 {[%emt 0:00:00]} 18. f5 {[%emt 0:00:08]} Qe7 {[%emt 0:00:00]} 19. Qf2 {[%emt 0:00:25]} Rce8 {[%emt 0:00:00]} 20. Rce1 {[%emt 0:00:56]} Qd6 {[%emt 0:00:00]} 21. Qh4 {[%emt 0:01:54]} Rc8 {[%emt 0:00:00]} 22. Rf3 {[%emt 0:02:25]} Rfe8 {[%emt 0:00:00]} 23. Rh3 {[%emt 0:00:20]} h5 {[%emt 0:00:00]} 24. fxg6 {[%emt 0:00:54]} fxg6 {[%emt 0:00:00]} 25. Bxg6 {[%emt 0:00:18]} Qxg6 {[%emt 0:00:00]} 26. Rg3 {[%emt 0:00:08]} Re6 {[%emt 0:00:00]} 27. Rxg6+ {[%emt 0:00:21]} Rxg6 {[%emt 0:00:00]} 28. Qxh5 {[%emt 0:00:02]} Rg7 {[%emt 0:00:00]} 29. Rf1 {[%emt 0:00:12]} c5 {[%emt 0:00:00]} 30. Qf5 {[%emt 0:00:50]} cxd4 {[%emt 0:00:00]} 31. exd4 {[%emt 0:00:01]} Re8 {[%emt 0:00:00]} 32. h4 {[%emt 0:03:31]} Bc8 {[%emt 0:00:00]} 33. Qxd5+ {[%emt 0:00:45]} Be6 {[%emt 0:00:00]} 34. Qe5 {[%emt 0:02:23]} Bd7 {[%emt 0:00:00]} 35. Qf4 {[%emt 0:01:29]} Kh7 {[%emt 0:00:00]} 36. h5 {[%emt 0:02:12]} Re6 {[%emt 0:00:00]} 37. Qf5+ {[%emt 0:52:58]} Kh8 {[%emt 0:00:00]} 38. Qf8+ {[%emt 0:00:00]} Rg8 {[%emt 0:00:00]} 39. d5 {[%emt 0:00:00]} Rxf8 {[%emt 0:00:00]} 40. Rxf8+ {[%emt 0:00:00]} Kg7 {[%emt 0:00:00]} 41. dxe6 {[%emt 0:00:00]} Kxf8 {[%emt 0:00:00]} 42. exd7 {[%emt 0:00:00]} 1-0

[Event "FIDE WCCC Open-12 2024"]
[Site "Montesilvano"]
[Date "2024.11.18"]
[Round "2.20"]
[White "Obidjonov, Oriyat"]
[Black "Bundan, Edward"]
[Result "1-0"]
[ECO "B30"]
[WhiteElo "2074"]
[BlackElo "1905"]
[PlyCount "118"]
[EventDate "2024.11.18"]
[EventType "swiss"]
[EventCountry "ITA"]
[TimeControl "5400+30"]

1. e4 {[%emt 0:00:03]} c5 {[%emt 0:00:10]} 2. Nf3 {[%emt 0:00:06]} Nc6 {[%emt 0:00:11]} 3. c4 {[%emt 0:00:17]} e5 {[%emt 0:02:41]} 4. Nc3 {[%emt 0:00:21]} g6 {[%emt 0:03:19]} 5. d3 {[%emt 0:01:03]} Bg7 {[%emt 0:01:45]} 6. Be2 {[%emt 0:01:32]} Nge7 {[%emt 0:00:56]} 7. O-O {[%emt 0:00:45]} O-O {[%emt 0:00:31]} 8. a3 {[%emt 0:00:27]} d6 {[%emt 0:01:34]} 9. h3 {[%emt 0:00:36]} f5 {[%emt 0:04:22]} 10. b4 {[%emt 0:12:02]} f4 {[%emt 0:13:06]} 11. b5 {[%emt 0:00:05]} Nd4 {[%emt 0:01:24]} 12. Nxd4 {[%emt 0:04:59]} cxd4 {[%emt 0:03:05]} 13. Nb1 {[%emt 0:03:40]} g5 {[%emt 0:02:28]} 14. Bg4 {[%emt 0:00:49]} Ng6 {[%emt 0:04:55]} 15. Bxc8 {[%emt 0:01:39]} Qxc8 {[%emt 0:01:27]} 16. Qh5 {[%emt 0:00:32]} Qd8 {[%emt 0:09:21]} 17. a4 {[%emt 0:05:11]} Qf6 {[%emt 0:01:38]} 18. Nd2 {[%emt 0:01:10]} Nh4 {[%emt 0:08:56]} 19. Ba3 {[%emt 0:02:00]} Rac8 {[%emt 0:06:39]} 20. Rac1 {[%emt 0:02:14]} b6 {[%emt 0:00:48]} 21. a5 {[%emt 0:04:09]} h6 {[%emt 0:01:10]} 22. axb6 {[%emt 0:01:09]} axb6 {[%emt 0:00:12]} 23. Bb4 {[%emt 0:00:05]} Qe6 {[%emt 0:02:02]} 24. Qg4 {[%emt 0:01:55]} Qg6 {[%emt 0:00:50]} 25. g3 {[%emt 0:01:24]} h5 {[%emt 0:00:27]} 26. Qd1 {[%emt 0:21:19]} g4 {[%emt 0:05:07]} 27. hxg4 {[%emt 0:00:05]} f3 {[%emt 0:00:44]} 28. Kh2 {[%emt 0:00:53]} Qxg4 {[%emt 0:01:14]} 29. Bxd6 {[%emt 0:00:10]} Rf7 {[%emt 0:01:40]} 30. c5 {[%emt 0:00:38]} Ng6 {[%emt 0:02:08]} 31. Rg1 {[%emt 0:21:23]} Nf4 {[%emt 0:01:38]} 32. Qf1 {[%emt 0:00:04]} Ne2 {[%emt 0:01:19]} 33. Qh3 {[%emt 0:00:06]} Qxh3+ {[%emt 0:00:18]} 34. Kxh3 {[%emt 0:00:03]} Nxg1+ {[%emt 0:00:08]} 35. Rxg1 {[%emt 0:00:06]} bxc5 {[%emt 0:00:31]} 36. b6 {[%emt 0:00:26]} Rb7 {[%emt 0:01:36]} 37. Nc4 {[%emt 0:00:08]} Bf6 {[%emt 0:01:53]} 38. Rb1 {[%emt 0:06:07]} Bd8 {[%emt 0:03:40]} 39. Rb5 {[%emt 0:01:48]} Kf7 {[%emt 0:05:48]} 40. Bxc5 {[%emt 0:03:06]} Ke6 {[%emt 0:02:06]} 41. Na5 {[%emt 0:00:25]} Rxc5 {[%emt 0:01:25]} 42. Rxc5 {[%emt 0:00:05]} Rxb6 {[%emt 0:00:44]} 43. Nc4 {[%emt 0:00:11]} Rb3 {[%emt 0:00:59]} 44. Rxe5+ {[%emt 0:00:03]} Kd7 {[%emt 0:01:42]} 45. Rxh5 {[%emt 0:01:04]} Bf6 {[%emt 0:01:12]} 46. Rf5 {[%emt 0:00:12]} Ke6 {[%emt 0:00:19]} 47. Rxf3 {[%emt 0:00:07]} Rb1 {[%emt 0:00:45]} 48. e5 {[%emt 0:01:37]} Bxe5 {[%emt 0:00:43]} 49. Nxe5 {[%emt 0:00:05]} Kxe5 {[%emt 0:00:10]} 50. Kh4 {[%emt 0:00:08]} Rh1+ {[%emt 0:01:15]} 51. Kg5 {[%emt 0:00:09]} Rh8 {[%emt 0:00:15]} 52. g4 {[%emt 0:00:12]} Rg8+ {[%emt 0:00:08]} 53. Kh4 {[%emt 0:00:05]} Rh8+ {[%emt 0:00:04]} 54. Kg3 {[%emt 0:00:12]} Rg8 {[%emt 0:00:22]} 55. Rf5+ {[%emt 0:00:21]} Ke6 {[%emt 0:04:10]} 56. Rf4 {[%emt 0:00:33]} Ke5 {[%emt 0:00:00]} 57. Rf5+ {[%emt 0:00:39]} Ke6 {[%emt 0:00:00]} 58. Kf4 {[%emt 0:00:04]} Rg7 {[%emt 0:00:00]} 59. f3 {[%emt 0:00:09]} Rg8 {[%emt 0:00:00]} 1-0